bitfinex-derivatives/quotes_BTCF0:USTF0_20250822
["timestamp","ask_amount","ask_price","bid_price","bid_amount"]
[1755851185898,0.34177668,113230.0,113220.0,0.12123]
[1755851186501,0.34177668,113230.0,113220.0,0.10669]
[1755851188299,0.34177668,113230.0,113220.0,0.07386]
[1755851189003,0.34177668,113230.0,113220.0,0.10669]
[1755851189900,0.34177668,113230.0,113220.0,0.12123]
[1755851192100,0.34177668,113230.0,113220.0,0.07386]
[1755851192308,0.34177668,113230.0,113220.0,0.05854]
[1755851200294,0.62041913,113230.0,113220.0,0.05854]
[1755851202700,0.62041913,113230.0,113220.0,0.02783]
[1755851203706,0.62041913,113230.0,113220.0,0.02683]
[1755851204113,0.62041913,113230.0,113220.0,0.02483]
[1755851204308,0.62053601,113230.0,113220.0,0.02483]
[1755851204807,0.43947158,113230.0,113220.0,0.02483]
[1755851206303,0.47751778,113230.0,113220.0,0.02483]
[1755851206509,0.31650331,113230.0,113220.0,0.02483]
[1755851207798,0.84496042,113230.0,113210.0,4e-05]
[1755851208004,1.37111422,113220.0,113210.0,0.02279]
[1755851209402,1.38360822,113220.0,113210.0,0.04566]
[1755851209605,1.94052244,113220.0,113210.0,0.04566]
[1755851209915,1.66390533,113220.0,113210.0,0.11616]
[1755851211114,1.16390533,113220.0,113210.0,0.11616]
[1755851211707,1.44236244,113220.0,113210.0,0.11616]
[1755851213011,0.88544822,113220.0,113210.0,0.11616]
[1755851213212,1.44236244,113220.0,113210.0,0.11616]
[1755851214817,1.44212244,113220.0,113210.0,0.11616]
[1755851215917,1.44212244,113220.0,113210.0,0.07823]
[1755851216611,1.46070079,113220.0,113210.0,0.07823]
[1755851218812,0.90378657,113220.0,113210.0,0.07823]
[1755851219015,1.46070079,113220.0,113210.0,0.07823]
[1755851219217,1.46070079,113220.0,113210.0,0.07827]
[1755851219817,0.90378657,113220.0,113210.0,0.07827]
[1755851220215,0.36644368,113220.0,113210.0,0.07827]
[1755851220417,1.18148368,113220.0,113210.0,0.07827]
[1755851221024,1.18148368,113220.0,113210.0,0.1162]
[1755851221320,1.18148368,113220.0,113210.0,0.08448]
[1755851221721,1.45994079,113220.0,113210.0,0.07072]
[1755851221909,1.18148368,113220.0,113210.0,0.07072]
[1755851222917,1.18148368,113220.0,113210.0,0.02283]
[1755851223217,1.45994079,113220.0,113210.0,0.02283]
[1755851223827,0.90302657,113220.0,113210.0,0.02283]
[1755851224130,1.45994079,113220.0,113210.0,0.02283]
[1755851232334,1.73850767,113220.0,113210.0,0.02283]
[1755851234532,1.73850767,113220.0,113210.0,8e-05]
[1755851235239,0.90302657,113220.0,113210.0,0.0457]
[1755851235439,1.46001397,113220.0,113210.0,0.0457]
[1755851235737,1.46001397,113220.0,113210.0,0.05554]
[1755851235936,1.56613397,113220.0,113210.0,0.05554]
[1755851236139,1.56613397,113220.0,113210.0,0.03267]
[1755851236439,1.84462767,113220.0,113210.0,0.02283]
[1755851237340,1.84462767,113220.0,113210.0,0.0457]
[1755851237536,1.56613397,113220.0,113210.0,0.0457]
[1755851237838,1.56613397,113220.0,113210.0,0.05499]
[1755851239144,1.56613397,113220.0,113210.0,0.03212]
[1755851239441,1.84462767,113220.0,113210.0,0.03212]
[1755851240135,1.84462767,113220.0,113210.0,0.05366]
[1755851242939,1.84814767,113220.0,113210.0,0.08712]
[1755851243142,1.56965397,113220.0,113210.0,0.11776]
[1755851243342,0.75109397,113220.0,113210.0,0.11776]
[1755851243545,1.56965397,113220.0,113210.0,0.11776]
[1755851244845,1.46353397,113220.0,113210.0,0.11776]
[1755851245445,0.64497397,113220.0,113210.0,0.11776]
[1755851245650,1.46325397,113220.0,113210.0,0.11776]
[1755851246249,0.90626657,113220.0,113210.0,0.11776]
[1755851246548,1.46325397,113220.0,113210.0,0.11776]
[1755851247348,0.64497397,113220.0,113210.0,0.11776]
[1755851247548,1.46313397,113220.0,113210.0,0.11776]
[1755851250350,1.46281397,113220.0,113210.0,0.11776]
[1755851251354,0.90582657,113220.0,113210.0,0.11776]
[1755851251546,1.46281397,113220.0,113210.0,0.11776]
[1755851251743,0.08798657,113220.0,113210.0,0.11776]
[1755851252047,1.18404027,113220.0,113210.0,0.3962537]
[1755851252554,0.36648027,113220.0,113210.0,0.3962537]
[1755851252748,1.18948027,113220.0,113210.0,0.3962537]
[1755851255656,1.46797397,113220.0,113210.0,0.11776]
[1755851257955,0.91098657,113220.0,113210.0,0.11776]
[1755851258157,1.46797397,113220.0,113210.0,0.11776]
[1755851259958,0.91098657,113220.0,113210.0,0.11776]
[1755851260258,0.64497397,113220.0,113210.0,0.11776]
[1755851260452,1.46697397,113220.0,113210.0,0.11776]
[1755851260758,0.90998657,113220.0,113210.0,0.11776]
[1755851260959,1.46697397,113220.0,113210.0,0.11776]
[1755851264659,0.90998657,113220.0,113210.0,0.11776]
[1755851265158,1.46697397,113220.0,113210.0,0.11776]
[1755851267862,1.46718131,113220.0,113210.0,0.11776]
[1755851269361,1.46718131,113220.0,113210.0,0.0843]
[1755851269661,1.46718131,113220.0,113210.0,0.11608]
[1755851270962,1.46718131,113220.0,113210.0,0.0843]
[1755851271163,1.46718131,113220.0,113210.0,0.06979]
[1755851271856,0.91019391,113220.0,113210.0,0.10157]
[1755851272052,1.46718131,113220.0,113210.0,0.10157]
[1755851272564,1.46718131,113220.0,113210.0,0.11586]
[1755851275869,1.46718131,113220.0,113210.0,0.3943537]
[1755851278470,0.91019391,113220.0,113210.0,0.3943537]
[1755851278671,1.18868761,113220.0,113210.0,0.3943537]
[1755851280575,0.08819391,113220.0,113210.0,0.3943537]
[1755851280873,1.18680761,113220.0,113210.0,0.3943537]
[1755851281072,1.18680761,113220.0,113210.0,0.44202598]
[1755851284073,0.08819391,113220.0,113210.0,0.44202598]
[1755851284377,1.18640761,113220.0,113210.0,0.3943537]
[1755851285582,1.18640761,113220.0,113210.0,0.11586]
[1755851285775,1.46490131,113220.0,113210.0,0.11586]
[1755851285976,0.64518131,113220.0,113210.0,0.3943537]
[1755851286275,1.46470131,113220.0,113210.0,0.3943537]
[1755851286686,1.46470131,113220.0,113210.0,0.11586]
[1755851286976,1.46470131,113220.0,113210.0,0.08408]
[1755851287182,1.46470131,113220.0,113210.0,0.3943537]
[1755851289078,0.36668761,113220.0,113210.0,0.3943537]
[1755851289284,0.01878569,113220.0,113210.0,0.3943537]
[1755851289477,0.83902569,113220.0,113210.0,0.3943537]
[1755851289676,0.01878569,113220.0,113210.0,0.6728474]
[1755851289977,1.04664,113230.0,113210.0,1.1198602]
[1755851290176,1.06558933,113230.0,113220.0,0.6741774]
[1755851291480,1.06658933,113230.0,113220.0,0.6741774]
[1755851292081,1.06758933,113230.0,113220.0,0.6741774]
[1755851292478,0.1357922,113280.0,113240.0,0.1766404]
[1755851292684,0.14314142,113280.0,113270.0,0.3268037]
[1755851292874,1.18385593,113280.0,113270.0,0.3956837]
[1755851293181,1.46234963,113280.0,113270.0,0.3956837]
[1755851293980,1.46434963,113280.0,113270.0,0.3956837]
[1755851294176,1.46434963,113280.0,113270.0,0.3813937]
[1755851294378,1.18585593,113280.0,113270.0,0.1029]
[1755851295081,1.18785593,113280.0,113270.0,0.1029]
[1755851295285,1.46594193,113280.0,113270.0,0.1029]
[1755851297984,1.18785593,113280.0,113270.0,0.11691]
[1755851298278,1.46594193,113280.0,113270.0,0.11691]
[1755851298580,1.46506193,113280.0,113270.0,0.07112]
[1755851298883,1.46506193,113280.0,113270.0,0.10476]
[1755851299079,1.46506193,113280.0,113270.0,0.11877]
[1755851299377,0.127994,113280.0,113270.0,0.13809677]
[1755851299583,1.124434,113280.0,113270.0,0.41618277]
[1755851300083,1.124434,113280.0,113270.0,0.13809677]
[1755851301271,1.40252,113280.0,113270.0,0.13809677]
[1755851309087,1.22588,113280.0,113270.0,0.13809677]
[1755851309289,1.40252,113280.0,113270.0,0.13809677]
[1755851309678,1.40252,113280.0,113270.0,0.10445677]
[1755851309882,1.124434,113280.0,113270.0,0.13809677]
[1755851310085,1.40252,113280.0,113270.0,0.13809677]
[1755851311889,1.40152,113280.0,113270.0,0.13809677]
[1755851312092,1.40052,113280.0,113270.0,0.13809677]
[1755851312388,1.4195658,113280.0,113270.0,0.13809677]
[1755851312590,1.4185658,113280.0,113270.0,0.13809677]
[1755851312782,1.4195658,113280.0,113270.0,0.13809677]
[1755851318496,1.4195658,113280.0,113270.0,0.09044677]
[1755851318791,1.3678458,113280.0,113270.0,0.09044677]
[1755851320490,1.4195658,113280.0,113270.0,0.04213677]
[1755851320696,1.2429258,113280.0,113270.0,0.04213677]
[1755851320896,1.4195658,113280.0,113270.0,0.04213677]
[1755851323401,1.4195658,113280.0,113270.0,0.10818677]
[1755851323589,0.5997658,113280.0,113270.0,0.13760677]
[1755851323793,0.9623598,113280.0,113270.0,0.41569277]
[1755851324089,1.1389998,113280.0,113270.0,0.41569277]
[1755851327000,0.9106398,113280.0,113270.0,0.41569277]
[1755851328197,0.8383658,113280.0,113270.0,0.41569277]
[1755851328597,0.0210458,113280.0,113270.0,0.41569277]
[1755851330798,0.0210458,113280.0,113270.0,0.75399107]
[1755851331197,0.0210458,113280.0,113270.0,0.75479107]
[1755851331400,0.002,113280.0,113270.0,0.75479107]
[1755851332005,0.002,113280.0,113270.0,1.03287707]
[1755851332501,0.002,113280.0,113270.0,2.25479107]
[1755851334907,0.002,113280.0,113270.0,2.16569277]
[1755851337599,0.002,113280.0,113270.0,2.25399107]
[1755851340911,0.002,113280.0,113270.0,2.16569277]
[1755851342919,0.002,113280.0,113270.0,2.25399107]
[1755851343309,0.002,113280.0,113270.0,2.16569277]
[1755851344214,0.002,113280.0,113270.0,2.25399107]
[1755851346116,0.002,113280.0,113270.0,2.53207707]
[1755851346317,0.002,113280.0,113270.0,2.25399107]
[1755851347521,0.002,113280.0,113270.0,2.53207707]
[1755851347914,0.002,113280.0,113270.0,2.25399107]
[1755851348119,0.002,113280.0,113270.0,2.00399107]
[1755851348317,0.002,113280.0,113270.0,2.28207707]
[1755851348616,1.79602054,113310.0,113270.0,2.79767707]
[1755851348817,1.79602054,113310.0,113300.0,0.399156]
[1755851348818,0.1349284,113310.0,113300.0,0.399156]
[1755851349018,0.1866484,113310.0,113300.0,0.399156]
[1755851349619,0.3632884,113310.0,113300.0,0.399156]
[1755851349821,0.3642884,113310.0,113300.0,0.399156]
[1755851350427,0.3642884,113310.0,113300.0,0.12107]
[1755851350919,0.36429072,113310.0,113300.0,0.12107]
[1755851351225,0.36429072,113310.0,113300.0,0.399156]
[1755851351409,0.36429072,113310.0,113300.0,0.41889779]
[1755851351613,0.22936,113310.0,113300.0,0.41889779]
[1755851351815,0.05272,113310.0,113300.0,0.41889779]
[1755851352116,0.22936,113310.0,113300.0,0.41889779]
[1755851352318,0.22836,113310.0,113300.0,0.41889779]
[1755851352518,0.22836,113310.0,113300.0,1.23401779]
[1755851352714,0.17664,113310.0,113300.0,1.23401779]
[1755851352915,0.86022759,113330.0,113320.0,0.0482]
[1755851353119,0.93113755,113330.0,113320.0,0.12107]
[1755851354126,0.93313755,113330.0,113320.0,0.12107]
[1755851354912,0.93413755,113330.0,113320.0,0.12107]
[1755851355423,1.21222355,113330.0,113320.0,0.12107]
[1755851355727,1.38886355,113330.0,113320.0,0.12107]
[1755851355924,1.11077755,113330.0,113320.0,0.12107]
[1755851356223,1.38886355,113330.0,113320.0,0.12107]
[1755851356727,1.11077755,113330.0,113320.0,0.12107]
[1755851356918,0.91117293,113330.0,113320.0,0.12107]
[1755851357226,1.25967982,113330.0,113320.0,0.12107]
[1755851358624,0.98159382,113330.0,113320.0,0.12107]
[1755851358825,1.25967982,113330.0,113320.0,0.12107]
[1755851360516,1.25967982,113330.0,113320.0,0.08664]
[1755851360922,1.25967982,113330.0,113320.0,0.11838]
[1755851367532,1.45912444,113330.0,113320.0,0.10651104]
[1755851367731,1.45912444,113330.0,113320.0,0.13825104]
[1755851368630,1.45812444,113330.0,113320.0,0.13825104]
[1755851368837,1.45912444,113330.0,113320.0,0.13825104]
[1755851369631,1.18003844,113330.0,113320.0,0.13825104]
[1755851369831,1.45812444,113330.0,113320.0,0.13825104]
[1755851370232,0.36507844,113330.0,113320.0,0.13825104]
[1755851370433,0.88782996,113330.0,113320.0,0.41633704]
[1755851370638,0.02118996,113330.0,113320.0,0.41633704]
[1755851370932,0.19782996,113330.0,113320.0,0.41633704]
[1755851371637,0.19682996,113330.0,113320.0,0.41633704]
[1755851372436,0.19682996,113330.0,113320.0,0.13825104]
[1755851372642,0.19682996,113330.0,113320.0,0.41633704]
[1755851373142,0.19582996,113330.0,113320.0,0.41633704]
[1755851373937,0.19582996,113330.0,113320.0,0.13825104]
[1755851374140,0.19582996,113330.0,113320.0,0.41633704]
[1755851374441,0.19582996,113330.0,113320.0,0.41637704]
[1755851380245,0.01918996,113330.0,113320.0,0.41637704]
[1755851380745,2.49384,113350.0,113340.0,0.04767]
[1755851380946,2.63534796,113350.0,113340.0,0.11787]
[1755851381138,2.84972706,113350.0,113340.0,0.11787]
[1755851381344,3.12781306,113350.0,113340.0,0.11787]
[1755851382046,3.12881306,113350.0,113340.0,0.11787]
[1755851382443,0.35688706,113350.0,113340.0,0.10602681]
[1755851382643,0.35688706,113350.0,113340.0,0.41585281]
[1755851382844,0.35888706,113350.0,113340.0,0.41585281]
[1755851383648,0.35888706,113350.0,113340.0,0.13776681]
[1755851383847,0.35688706,113350.0,113340.0,0.13776681]
[1755851384047,0.35788706,113350.0,113340.0,0.13776681]
[1755851385345,0.2872951,113350.0,113340.0,0.10602681]
[1755851385546,0.2872951,113350.0,113340.0,0.13776681]
[1755851386042,0.2872951,113350.0,113340.0,0.41585281]
[1755851388940,0.2872951,113350.0,113340.0,0.36155281]
[1755851392139,0.2872951,113350.0,113340.0,0.08346681]
[1755851392336,0.56502827,113350.0,113340.0,0.36119998]
[1755851393150,0.2872951,113350.0,113340.0,0.08346681]
[1755851393453,0.2872951,113350.0,113340.0,0.36119998]
[1755851393650,0.56502827,113350.0,113340.0,0.36119998]
[1755851395258,0.56502827,113350.0,113340.0,0.08346681]
[1755851395451,0.56502827,113350.0,113340.0,0.36119998]
[1755851396459,0.2872951,113350.0,113340.0,0.36119998]
[1755851396752,1.38226827,113350.0,113340.0,0.36119998]
[1755851397952,1.19558134,113350.0,113340.0,0.36119998]
[1755851399351,1.19558134,113350.0,113340.0,0.08346681]
[1755851399549,1.19558134,113350.0,113340.0,0.36119998]
[1755851400356,1.23207212,113350.0,113340.0,0.36119998]
[1755851400548,1.23207212,113350.0,113340.0,0.08346681]
[1755851400749,1.23207212,113350.0,113340.0,0.36119998]
[1755851402050,1.23291212,113350.0,113340.0,0.36119998]
[1755851403258,0.41483212,113350.0,113340.0,0.36119998]
[1755851403459,0.41483212,113350.0,113340.0,0.63893315]
[1755851403460,0.91844817,113350.0,113340.0,0.63893315]
[1755851403851,0.06985877,113360.0,113340.0,0.63893315]
[1755851404056,0.06985877,113360.0,113350.0,0.34298317]
[1755851404057,1.09577317,113360.0,113350.0,0.34298317]
[1755851404257,1.09577317,113360.0,113350.0,0.06525]
[1755851404560,1.23334332,113360.0,113350.0,0.34298317]
[1755851404754,0.95561015,113360.0,113350.0,0.34298317]
[1755851405158,1.23334332,113360.0,113350.0,0.34298317]
[1755851405563,0.95561015,113360.0,113350.0,0.34298317]
[1755851405754,1.23434332,113360.0,113350.0,0.34298317]
[1755851406261,1.23334332,113360.0,113350.0,0.34298317]
[1755851406464,1.23434332,113360.0,113350.0,0.34298317]
[1755851407360,1.23434332,113360.0,113350.0,0.06525]
[1755851407562,1.51207649,113360.0,113350.0,0.05055]
[1755851408858,1.58335389,113360.0,113350.0,0.05055]
[1755851409661,1.58335389,113360.0,113350.0,0.32828317]
[1755851410260,1.60238152,113360.0,113350.0,0.32828317]
[1755851410662,1.60238152,113360.0,113350.0,0.34298317]
[1755851412260,1.25237095,113360.0,113350.0,0.34298317]
[1755851412466,1.21524897,113360.0,113350.0,0.34298317]
[1755851413470,1.21524897,113360.0,113350.0,0.06525]
[1755851413767,0.1206358,113360.0,113350.0,0.34298317]
[1755851414067,0.9373158,113360.0,113350.0,0.34298317]
[1755851414571,0.9073158,113360.0,113350.0,0.34298317]
[1755851415259,0.80670763,113360.0,113350.0,0.34298317]
[1755851415661,0.9073158,113360.0,113350.0,0.34298317]
[1755851416171,0.80670763,113360.0,113350.0,0.34298317]
[1755851416361,1.20343524,113370.0,113360.0,0.06525]
[1755851416564,1.30404341,113370.0,113360.0,0.34298317]
[1755851417371,1.02631024,113370.0,113360.0,0.34298317]
[1755851417555,1.30404341,113370.0,113360.0,0.34298317]
[1755851418969,1.02631024,113370.0,113360.0,0.34298317]
[1755851419171,1.30404341,113370.0,113360.0,0.34298317]
[1755851419669,1.30404341,113370.0,113360.0,0.06525]
[1755851419866,1.30404341,113370.0,113360.0,0.34298317]
[1755851420963,1.30404341,113370.0,113360.0,0.06525]
[1755851421172,1.30404341,113370.0,113360.0,0.05055]
[1755851421362,1.48196841,113370.0,113350.0,0.02506]
[1755851421562,0.65607451,113360.0,113350.0,0.02506]
[1755851421971,0.10060817,113360.0,113350.0,0.02506]
[1755851422269,0.37833324,113360.0,113350.0,0.03441]
[1755851423369,0.10060817,113360.0,113350.0,0.34209507]
[1755851423675,0.91700817,113360.0,113350.0,0.34209507]
[1755851424065,0.8164,113360.0,113350.0,0.34209507]
[1755851424270,0.91700817,113360.0,113350.0,0.34209507]
[1755851424572,0.91700817,113360.0,113350.0,0.06437]
[1755851424977,1.19473324,113360.0,113350.0,0.06437]
[1755851425162,0.91700817,113360.0,113350.0,0.06437]
[1755851425763,1.19473324,113360.0,113350.0,0.06437]
[1755851425966,0.91700817,113360.0,113350.0,0.06437]
[1755851426166,1.19473324,113360.0,113350.0,0.06437]
[1755851426367,0.91700817,113360.0,113350.0,0.06437]
[1755851426567,1.2138655,113360.0,113350.0,0.06437]
[1755851426768,1.2138655,113360.0,113350.0,0.02506]
[1755851427275,0.93614043,113360.0,113350.0,0.02506]
[1755851427577,1.2138655,113360.0,113350.0,0.03441]
[1755851427772,1.2138655,113360.0,113350.0,0.02506]
[1755851428565,1.11325733,113360.0,113350.0,0.02506]
[1755851428764,1.11325733,113360.0,113330.0,0.02506]
[1755851428765,1.36405733,113360.0,113330.0,0.02506]
[1755851428976,0.65605831,113340.0,113330.0,0.02506]
[1755851429176,1.2356655,113340.0,113330.0,0.02506]
[1755851429375,1.2356655,113340.0,113330.0,0.03441]
[1755851430071,1.2356655,113340.0,113330.0,0.03641]
[1755851431379,1.2356655,113340.0,113330.0,0.05226]
[1755851431774,1.2356655,113340.0,113330.0,0.06637]
[1755851432371,1.2356655,113340.0,113330.0,0.06737]
[1755851433072,0.95794043,113340.0,113330.0,0.06737]
[1755851433275,1.2356655,113340.0,113330.0,0.06737]
[1755851433471,1.13505733,113340.0,113330.0,0.05326]
[1755851433775,1.2356655,113340.0,113330.0,0.03741]
[1755851435180,1.06355092,113340.0,113330.0,0.03741]
[1755851436382,0.78582585,113340.0,113330.0,0.03741]
[1755851436576,1.06355092,113340.0,113330.0,0.03741]
[1755851437478,0.96294275,113340.0,113330.0,0.03741]
[1755851437684,1.24066782,113340.0,113330.0,0.02806]
[1755851437882,1.34127599,113340.0,113330.0,0.02806]
[1755851438569,0.78582585,113340.0,113330.0,0.02806]
[1755851438770,1.34127599,113340.0,113330.0,0.02806]
[1755851438982,0.78582585,113340.0,113330.0,0.02806]
[1755851439178,1.34207599,113340.0,113330.0,0.003]
[1755851439477,1.24146782,113340.0,113330.0,0.001]
[1755851439668,1.24146782,113340.0,113330.0,0.002]
[1755851439872,1.24146782,113340.0,113330.0,0.001]
[1755851440578,1.24146782,113340.0,113320.0,4e-05]
[1755851440777,0.37833324,113330.0,113320.0,4e-05]
[1755851440977,0.3974655,113330.0,113320.0,4e-05]
[1755851441677,0.29685733,113330.0,113320.0,4e-05]
[1755851442083,0.54685733,113330.0,113320.0,4e-05]
[1755851449497,0.8245824,113330.0,113320.0,4e-05]
[1755851449801,0.8245824,113330.0,113300.0,0.07647179]
[1755851450002,0.65601831,113310.0,113300.0,0.07647179]
[1755851450203,0.67515057,113310.0,113300.0,0.07647179]
[1755851450402,0.67515057,113310.0,113300.0,0.05673]
[1755851450604,0.67515057,113310.0,113300.0,0.02506]
[1755851451105,0.5745824,113310.0,113300.0,0.02806]
[1755851451603,0.64685862,113310.0,113300.0,0.02806]
[1755851452503,0.74742679,113310.0,113300.0,0.02806]
[1755851455006,0.22268007,113310.0,113300.0,0.04956]
[1755851455208,0.77813021,113310.0,113300.0,0.05973]
[1755851455400,1.61149021,113310.0,113300.0,0.05973]
[1755851458213,1.82173021,113310.0,113300.0,0.05973]
[1755851460012,1.82173021,113310.0,113300.0,0.09459]
[1755851460214,1.82173021,113310.0,113300.0,0.05973]
[1755851462509,1.8218548,113310.0,113300.0,0.05973]
[1755851469317,1.8218548,113310.0,113300.0,0.03823]
[1755851470721,1.26640466,113310.0,113300.0,0.09459]
[1755851471117,1.8218548,113310.0,113300.0,0.05973]
[1755851474919,1.8182548,113310.0,113300.0,0.05973]
[1755851475117,1.881773,113310.0,113300.0,0.05973]
[1755851477222,1.86251615,113310.0,113300.0,0.05973]
[1755851477422,1.88189376,113310.0,113300.0,0.05973]
[1755851477719,1.88189376,113310.0,113300.0,0.04956]
[1755851477914,1.88189376,113310.0,113300.0,0.02806]
[1755851478820,1.88189376,113310.0,113300.0,0.06026]
[1755851479018,1.88189376,113310.0,113300.0,0.09433]
[1755851479213,1.88189376,113310.0,113300.0,0.06026]
[1755851480021,1.88189376,113310.0,113300.0,0.03749]
[1755851480216,1.88189376,113310.0,113300.0,0.02806]
[1755851482124,1.32644362,113310.0,113300.0,0.05083]
[1755851482320,1.88189376,113310.0,113300.0,0.05083]
[1755851482516,1.88189376,113310.0,113300.0,0.02806]
[1755851482716,1.88189376,113310.0,113300.0,0.05083]
[1755851485028,1.81837556,113310.0,113300.0,0.05083]
[1755851486324,1.81901934,113310.0,113300.0,0.05083]
[1755851487425,1.81901934,113310.0,113300.0,0.06026]
[1755851489629,1.81901934,113310.0,113300.0,0.09433]
[1755851489925,1.81901934,113310.0,113300.0,0.06026]
[1755851491924,1.81901934,113310.0,113300.0,0.11123]
[1755851493527,1.81901934,113310.0,113300.0,0.07716]
[1755851497134,1.79964173,113310.0,113300.0,0.07716]
[1755851497622,1.81913149,113310.0,113300.0,0.07716]
[1755851498931,1.81913149,113310.0,113300.0,0.06026]
[1755851499331,1.81913149,113310.0,113300.0,0.04734163]
[1755851500026,2.09717845,113310.0,113300.0,0.003]
[1755851500232,1.81913149,113310.0,113300.0,0.003]
[1755851500931,1.81913149,113310.0,113290.0,0.02511]
[1755851500932,1.99661028,113310.0,113290.0,0.02511]
[1755851501234,0.02664,113280.0,113270.0,0.11712674]
[1755851501435,1.42722368,113280.0,113270.0,0.09722]
[1755851502334,1.42722368,113280.0,113270.0,0.0322]
[1755851502839,1.40058368,113280.0,113270.0,0.0322]
[1755851503132,1.41155368,113280.0,113270.0,0.06031]
[1755851503330,0.85545976,113280.0,113270.0,0.06031]
[1755851503532,1.42722368,113280.0,113270.0,0.12533]
[1755851503925,1.42722368,113280.0,113270.0,0.12633]
[1755851504431,0.03515976,113280.0,113270.0,0.12633]
[1755851504728,0.84488976,113280.0,113270.0,0.12633]
[1755851505231,0.86055976,113280.0,113270.0,0.12633]
[1755851505435,1.13868016,113280.0,113270.0,0.12633]
[1755851505739,0.03515976,113280.0,113270.0,0.4044504]
[1755851505931,0.86063976,113280.0,113270.0,0.12633]
[1755851506438,0.86063976,113280.0,113270.0,0.12637]
[1755851507238,0.96750379,113280.0,113270.0,0.12637]
[1755851509234,0.97792379,113280.0,113270.0,0.12637]
[1755851511640,0.97792379,113280.0,113270.0,0.06135]
[1755851512537,0.97792379,113280.0,113270.0,0.09558]
[1755851512736,0.69980339,113280.0,113270.0,0.09558]
[1755851513036,0.97792379,113280.0,113270.0,0.12495]
[1755851514640,0.69980339,113280.0,113270.0,0.12495]
[1755851514940,0.97792379,113280.0,113270.0,0.12495]
[1755851516947,0.69980339,113280.0,113270.0,0.12495]
[1755851517149,0.97792379,113280.0,113270.0,0.12495]
[1755851517347,0.69980339,113280.0,113270.0,0.12495]
[1755851517644,0.68938339,113280.0,113270.0,0.12495]
[1755851518048,0.96750379,113280.0,113270.0,0.12495]
[1755851519137,0.69980339,113280.0,113270.0,0.12495]
[1755851519345,0.97792379,113280.0,113270.0,0.12495]
[1755851521144,0.2937904,113280.0,113270.0,0.12495]
[1755851521340,1.1175504,113280.0,113270.0,0.12495]
[1755851523537,1.1279704,113280.0,113270.0,0.12495]
[1755851523855,0.84985,113280.0,113270.0,0.12495]
[1755851524151,1.1279704,113280.0,113270.0,0.12495]
[1755851525351,0.83827,113280.0,113270.0,0.6530704]
[1755851526051,0.01567,113280.0,113270.0,0.6530704]
[1755851528161,0.01567,113280.0,113270.0,0.4030704]
[1755851529065,0.01567,113280.0,113270.0,0.12495]
[1755851529481,0.2937904,113280.0,113270.0,0.12495]
[1755851529855,0.3042104,113280.0,113270.0,0.12495]
[1755851530365,0.5823308,113280.0,113270.0,0.06135]
[1755851530660,0.5831308,113280.0,113260.0,0.06895]
[1755851530859,1.1281804,113270.0,113260.0,0.05511]
[1755851531061,1.21614166,113270.0,113260.0,0.02381]
[1755851531864,1.21614166,113270.0,113260.0,0.02581]
[1755851532258,0.93802126,113270.0,113260.0,0.04706]
[1755851532462,1.21614166,113270.0,113260.0,0.12371]
[1755851532662,0.32476349,113270.0,113260.0,0.12371]
[1755851532860,0.86002309,113270.0,113260.0,0.12371]
[1755851533061,0.86002309,113270.0,113260.0,0.12071]
[1755851533374,0.86002309,113270.0,113260.0,0.11871]
[1755851533666,0.86102309,113270.0,113260.0,0.11871]
[1755851533854,0.03722309,113270.0,113260.0,0.6468304]
[1755851534966,0.02054309,113270.0,113260.0,0.6468304]
[1755851535367,0.02054309,113270.0,113260.0,0.36871]
[1755851535567,0.02054309,113270.0,113260.0,0.6468304]
[1755851538270,0.02054309,113270.0,113260.0,0.36871]
[1755851538569,0.02054309,113270.0,113260.0,0.6468304]
[1755851539868,0.02054309,113270.0,113260.0,0.7351366]
[1755851540773,0.02054309,113270.0,113260.0,0.6468304]
[1755851541172,0.01954309,113270.0,113260.0,0.7351366]
[1755851541474,0.01954309,113270.0,113260.0,0.6468304]
[1755851543076,0.01954309,113270.0,113260.0,0.36871]
[1755851543376,0.01954309,113270.0,113260.0,0.6468304]
[1755851544677,0.01954309,113270.0,113260.0,0.7351366]
[1755851545071,0.01954309,113270.0,113260.0,0.6468304]
[1755851545266,0.01954309,113270.0,113260.0,0.4570162]
[1755851545472,0.01954309,113270.0,113260.0,0.7351366]
[1755851545777,0.01954309,113270.0,113260.0,0.6468304]
[1755851546077,0.01954309,113270.0,113260.0,0.7351366]
[1755851546576,0.01954309,113270.0,113260.0,0.6468304]
[1755851546772,0.29766349,113270.0,113260.0,0.36871]
[1755851547079,0.01954309,113270.0,113260.0,0.36871]
[1755851547281,0.01954309,113270.0,113260.0,0.6468304]
[1755851552083,0.01954309,113270.0,113260.0,0.36871]
[1755851552284,0.01954309,113270.0,113260.0,0.6468304]
[1755851554887,0.31395349,113270.0,113260.0,0.11871]
[1755851555082,0.39330166,113270.0,113260.0,0.11871]
[1755851555477,0.39330166,113270.0,113260.0,0.08448]
[1755851555682,0.38237166,113270.0,113260.0,0.11779]
[1755851556690,0.39330166,113270.0,113260.0,0.11779]
[1755851557980,0.11518126,113270.0,113260.0,0.11779]
[1755851558280,0.39330166,113270.0,113260.0,0.11779]
[1755851559380,0.32488349,113270.0,113260.0,0.04937183]
[1755851559580,0.34395349,113270.0,113260.0,0.08182183]
[1755851560077,1.17175349,113270.0,113260.0,0.08182183]
[1755851560683,1.17175349,113270.0,113260.0,0.04851183]
[1755851561887,1.15348349,113270.0,113250.0,0.05762547]
[1755851562083,0.3375204,113260.0,113250.0,0.13935547]
[1755851562283,0.35706349,113260.0,113250.0,0.13935547]
[1755851562885,0.35706349,113260.0,113250.0,0.06388]
[1755851563186,0.35706349,113260.0,113250.0,0.12156]
[1755851563589,0.35706349,113260.0,113250.0,0.12056]
[1755851563787,0.35706349,113260.0,113250.0,0.12156]
[1755851564387,0.38062039,113260.0,113250.0,0.12156]
[1755851564790,1.20774039,113260.0,113250.0,0.12156]
[1755851565284,1.20774039,113260.0,113250.0,0.03445]
[1755851565788,1.20774039,113260.0,113250.0,0.08222]
[1755851566586,1.20774039,113260.0,113250.0,0.10559]
[1755851567395,1.20774039,113260.0,113250.0,0.03445]
[1755851568290,1.20774039,113260.0,113250.0,0.03345]
[1755851568791,1.20774039,113260.0,113250.0,0.001]
[1755851568995,1.17636039,113260.0,113240.0,0.07369]
[1755851569195,0.3362304,113250.0,113240.0,0.12283]
[1755851569395,0.35577349,113250.0,113240.0,0.12283]
[1755851570195,0.35577349,113250.0,113240.0,0.12483]
[1755851572196,0.07765309,113250.0,113240.0,0.12483]
[1755851572396,0.35577349,113250.0,113240.0,0.12483]